Cogmind - Beta 12 @@@ ROGUE MODE // 2023.04.08 @ 23:06:37 Player: Zellbot Result: Destroyed by Y-45 Defender with Heavy Assault Rifle Performance ------------- Evolutions (2) 1000 Regions Visited (7) 1400 Robots Destroyed (78) 390 Value Destroyed (2490) 2490 Prototype IDs (26) 520 Alien Tech Used (0) 0 Bonus (322) 322 TOTAL SCORE: 6122 Bonus ------- High Alert Combat Kills 22 Aligned with FarCom 300 Cogmind --------- Core Integrity 0/550 Matter 290/300 Energy 71/100 System Corruption 2% Temperature Cool (9) Movement Core (350) Ox6 Location -8/Materials Parts ------- > --- POWER (1) -------- (None) > --- PROPULSION (2) --- (None) > --- UTILITY (6) ------ Huge Storage Unit Advanced Weight Redist. System Signal Interpreter > --- WEAPON (2) ------- (None) > --- INVENTORY (25) --- Light Deuterium Engine Light Deuterium Engine Cesium-ion Thruster Cesium-ion Thruster Cesium-ion Thruster Cesium-ion Thruster Cesium-ion Thruster Small Storage Unit Medium Storage Unit Machine Analyzer Improved Terrain Scanner Terrain Scan Processor Reaction Control System Hacking Suite Hacking Suite Hacking Suite Hacking Suite Hacking Suite Hacking Suite Hacking Suite Deploy-a-Sentry Deploy-a-Sentry Deploy-a-Sentry Peak State ------------ > --- POWER ------------ Light Deuterium Engine > --- PROPULSION ------- Wheel Compact Wheel > --- UTILITY ---------- Improved Heat Sink Huge Storage Unit Hardened Light Armor Plating Hardened Light Armor Plating Hardened Light Armor Plating Hardened Light Armor Plating > --- WEAPON ----------- Improved Assault Rifle Enhanced Autogun > --- INVENTORY -------- Light Deuterium Engine Light Deuterium Engine Cesium-ion Thruster Cesium-ion Thruster Cesium-ion Thruster Cesium-ion Thruster Cesium-ion Thruster Small Storage Unit Medium Storage Unit Advanced Weight Redist. System Machine Analyzer Signal Interpreter Improved Terrain Scanner Terrain Scan Processor Reaction Control System Hacking Suite Hacking Suite Hacking Suite Hacking Suite Hacking Suite Hacking Suite Minigun Deploy-a-Sentry Deploy-a-Sentry Deploy-a-Sentry [Rating: 32] Favorites ----------- Power Light Deuterium Engine Engine Light Deuterium Engine Power Core Light Nuclear Core Propulsion Wheel Treads Light Treads Wheel Wheel Utility Huge Storage Unit Device Improved Heat Sink Storage Huge Storage Unit Processor Signal Interpreter Protection Hardened Light Armor Plating Weapon Autogun Energy Gun Beam Rifle Ballistic Gun Autogun Build | -11 -10 -10 -9 -9 -9 -8 -8 ------- Run | Jun Mat Min Mat Min Exi Min Mat Slots Evolved 4 | . . . 2 . . . 2 Power . | . . . . . . . . Propulsion . | . . . . . . . . Utility 4 | . . . 2 . . . 2 Weapon . | . . . . . . . . Parts Attached 59 | 6 7 3 11 1 . 4 27 Power 7 | 1 1 1 3 . . . 1 Engine 6 | 1 1 1 2 . . . 1 Core 1 | . . . 1 . . . . Reactor . | . . . . . . . . Propulsion 10 | 2 . 1 2 . . 2 3 Treads 2 | . . . . . . . 2 Leg . | . . . . . . . . Wheel 8 | 2 . 1 2 . . 2 1 Hover . | . . . . . . . . Flight . | . . . . . . . . Utility 26 | 1 3 1 4 . . 1 16 Device 9 | . 1 1 . . . 1 6 Storage 3 | 1 2 . . . . . . Processor 2 | . . . . . . . 2 Hackware . | . . . . . . . . Protection 12 | . . . 4 . . . 8 Artifact . | . . . . . . . . Weapon 16 | 2 3 . 2 1 . 1 7 Energy Gun 2 | . . . . . . . 2 Energy Cannon . | . . . . . . . . Ballistic Gun 14 | 2 3 . 2 1 . 1 5 Ballistic Cannon . | . . . . . . . . Launcher . | . . . . . . . . Special Weapon . | . . . . . . . . Impact Weapon . | . . . . . . . . Slashing Weapon . | . . . . . . . . Piercing Weapon . | . . . . . . . . Special Melee Weapon . | . . . . . . . . Unidentified Prototypes 3 | . . . . . . . 3 Parts Lost 30 | . 2 1 4 1 . 5 17 Power 5 | . 1 1 1 . . . 2 Propulsion 10 | . 1 . 2 . . 2 5 Utility 10 | . . . 1 . . 3 6 Weapon 5 | . . . . 1 . . 4 Highest Loss Streak 6 | . 2 1 2 1 . 4 6 To Critical Strikes . | . . . . . . . . Average Slot Usage (%) 86 | . 85 98 89 98 100 75 83 Engine 8 | . 10 12 7 11 11 11 5 Treads 1 | . . . . . . . 3 Wheel 17 | . 19 28 20 22 22 21 10 Device 11 | . 13 14 11 11 11 9 10 Storage 11 | . 14 14 11 11 11 11 9 Processor 4 | . . . . . . . 11 Protection 10 | . . . 13 22 22 . 17 Energy Gun 1 | . . . . . . . 4 Ballistic Gun 19 | . 27 28 22 20 22 22 11 Naked Turns . | . . . . . . . . Heaviest Build 112 | 11 92 92 107 102 102 102 112 Greatest Support 40 | 20 20 26 26 26 26 35 40 Greatest Overweight (x) 31 | 2 9 3 6 3 3 3 31 Average Overweight (x) 3 | . 5 3 3 3 3 2 3 Largest Inventory Capacity 25 | 8 25 25 25 25 25 25 25 Average Capacity 24 | 7 23 25 25 25 25 25 25 Most Carried 25 | 2 25 25 25 25 25 25 25 Average Carried 21 | 1 14 24 24 24 24 23 24 Final Capacity 25 | 8 25 25 25 25 25 25 25 Final Carried 25 | 2 25 24 25 24 25 23 23 Class Distribution -------------------- 85% | Mutant 14% | Scavenger-Mutant Dominant Class ---------------- Mutant | -10/Materials Mutant | -10/Mines Mutant | -9/Materials Mutant | -9/Mines Mutant | -9/Exiles Mutant | -8/Mines Mutant | -8/Materials Resources | -11 -10 -10 -9 -9 -9 -8 -8 ----------- Run | Jun Mat Min Mat Min Exi Min Mat Matter Collected 2503 | 181 502 150 609 49 . 167 845 Remotely . | . . . . . . . . Salvage Created 3205 | . 588 263 825 . . 204 1325 Parts 173 | . 41 9 47 . . 8 68 Haulers Intercepted 1 | . 1 . . . . . . Recyclers Shooed 1 | . . . 1 . . . . Parts Field Recycled . | . . . . . . . . Retrieved Matter . | . . . . . . . . Parts Self-Destructed . | . . . . . . . . Prevented . | . . . . . . . . Kills | -11 -10 -10 -9 -9 -9 -8 -8 ------- Run | Jun Mat Min Mat Min Exi Min Mat Combat Hostiles Destroyed 62 | . 13 6 15 . . 4 24 Guns 62 | . 13 6 15 . . 4 24 Classes Destroyed 13 | . 6 . 4 . . 2 1 Worker 4 | . . . 1 . . . 3 Builder 1 | . . . . . . . 1 Tunneler 1 | . 1 . . . . . . Hauler 1 | . 1 . . . . . . Recycler 4 | . 1 . 1 . . . 2 Operator 4 | . 1 . 2 . . . 1 Watcher 1 | . . . 1 . . . . Swarmer 7 | . 3 . . . . . 4 Grunt 43 | . 10 6 11 . . 2 14 Brawler 1 | . . . . . . 1 . Duelist 1 | . . . 1 . . . . Sentry 7 | . . . 3 . . . 4 Hunter 3 | . . . . . . 1 2 Best Kill Streak 5 | . 5 2 5 . . 3 5 Combat Bots Only 5 | . 3 2 3 . . 3 5 Max Kills in Single Turn 2 | . 2 2 1 . . 1 1 Gunslinging 1 | . . 1 . . . . . Exploded . | . . . . . . . . Melee . | . . . . . . . . Uniques/NPCs Destroyed . | . . . . . . . . Combat | -11 -10 -10 -9 -9 -9 -8 -8 -------- Run | Jun Mat Min Mat Min Exi Min Mat Damage Taken 4750 | . 436 237 1024 14 . 456 2583 Core 995 | . 94 94 70 . . 176 561 Absorbed by Shields . | . . . . . . . . Regen/Repaired (Parts) 102 | . 102 . . . . . . Core Remaining (%) 54 | 100 . 24 . . . 38 . Volleys Fired 278 | . 53 13 64 2 . 18 128 Largest 2 | . 2 2 2 1 . 2 2 Hottest 111 | . 46 46 46 23 . 48 111 Shots Fired 518 | . 106 26 128 2 . 36 220 Gun 518 | . 106 26 128 2 . 36 220 Cannon . | . . . . . . . . Launcher . | . . . . . . . . Special . | . . . . . . . . Kinetic 456 | . 106 26 128 2 . 36 158 Thermal 62 | . . . . . . . 62 Explosive . | . . . . . . . . Electromagnetic . | . . . . . . . . Robot Hit Streak 15 | . 6 5 10 . . 8 15 Robot Miss Streak 6 | . 6 2 4 4 . 4 3 Penetration Max . | . . . . . . . . Secondary Targets 9 | . 2 3 1 . . . 3 Max Gunslinging Chain 1 | . 1 1 1 . . . 1 Shots Hit Robots 328 | . 54 20 82 . . 22 150 Core Hits 137 | . 27 7 32 . . 10 61 Critical Kills . | . . . . . . . . Critical Parts Destroyed 3 | . . . . . . . 3 Critical Strikes 10 | . . . . . . . 10 Burn 7 | . . . . . . . 7 Destroy 3 | . . . . . . . 3 Melee Attacks . | . . . . . . . . Impact . | . . . . . . . . Slashing . | . . . . . . . . Piercing . | . . . . . . . . Sneak Attacks . | . . . . . . . . Combat Hostiles . | . . . . . . . . Follow-up Attacks . | . . . . . . . . Damage Inflicted 5284 | . 874 308 1292 . . 344 2466 Guns 5250 | . 874 308 1289 . . 344 2435 Cannons . | . . . . . . . . Explosions . | . . . . . . . . Melee . | . . . . . . . . Ramming 34 | . . . 3 . . . 31 Kinetic 4633 | . 874 308 1289 . . 344 1818 Thermal 617 | . . . . . . . 617 Explosive . | . . . . . . . . Electromagnetic . | . . . . . . . . Impact . | . . . . . . . . Slashing . | . . . . . . . . Piercing . | . . . . . . . . Highest Corruption 5 | . . . . . . 5 2 Average Corruption 3 | . . . . . . 5 2 Corruption Purged . | . . . . . . . . Corruption Blocked . | . . . . . . . . Effects 23 | . . . . . . 13 10 Message Errors 5 | . . . . . . 2 3 Matter Fused 6 | . . . . . . 4 2 Heat Flow Errors 4 | . . . . . . 3 1 Energy Discharges 2 | . . . . . . 2 . Data Loss (minor) 4 | . . . . . . 2 2 Data Loss (major) 1 | . . . . . . . 1 Weapon Failures 1 | . . . . . . . 1 Overload Shots . | . . . . . . . . Overflow Damage . | . . . . . . . . Projectiles . | . . . . . . . . Explosions . | . . . . . . . . Melee . | . . . . . . . . Knockbacks . | . . . . . . . . Impact . | . . . . . . . . Kinetic . | . . . . . . . . Secondary . | . . . . . . . . Self-Inflicted Damage 16 | . . . 1 . . . 15 Shots . | . . . . . . . . Rammed 2 | . . . 1 . . . 1 Targets Rammed 2 | . . . 1 . . . 1 Kicked . | . . . . . . . . Crushed . | . . . . . . . . Highest Temperature 259 | . 36 10 19 . . 259 197 Average Temperature 37 | . 21 5 4 . . 57 41 Received Heat Transfer 1995 | . 183 126 444 . . 108 1134 Siege Activations . | . . . . . . . . Robots Corrupted . | . . . . . . . . Combat Hostiles . | . . . . . . . . Parts Fried . | . . . . . . . . Impact Corruptions . | . . . . . . . . Robots Melted . | . . . . . . . . Combat Hostiles . | . . . . . . . . Parts Melted 10 | . . . . . . . 10 Heat Transferred 2035 | . . . . . . . 2035 Parts Sabotaged . | . . . . . . . . Parts Stolen . | . . . . . . . . Parts Stripped . | . . . . . . . . Power Chain Reactions . | . . . . . . . . Missiles Intercepted . | . . . . . . . . Alert | -11 -10 -10 -9 -9 -9 -8 -8 ------- Run | Jun Mat Min Mat Min Exi Min Mat Peak Influence 429 | . 241 184 338 131 . 80 429 Initial 131 | . . 54 71 131 . . . Average 141 | . 100 131 201 124 . 46 179 Maximum Alert Level 2 | . 1 . 1 . . . 2 Low Security (%) 71 | 100 82 100 50 100 . 100 54 Level 1 27 | . 17 . 49 . . . 39 Level 2 1 | . . . . . . . 5 Level 3 . | . . . . . . . . Level 4 . | . . . . . . . . Level 5 . | . . . . . . . . High Security . | . . . . . . . . Max Security . | . . . . . . . . Squads Dispatched 16 | . 3 1 2 . . . 10 Investigation 3 | . 1 1 . . . . 1 Extermination . | . . . . . . . . Reinforcement 7 | . 2 . 2 . . . 3 Assault . | . . . . . . . . Garrison 6 | . . . . . . . 6 Intercept . | . . . . . . . . Searches Triggered . | . . . . . . . . Construction Impeded 1 | . . . . . . . 1 Haulers Reinforced . | . . . . . . . . Active Scanning Responses . | . . . . . . . . Cargo Convoy Interrupts . | . . . . . . . . Stealth | -11 -10 -10 -9 -9 -9 -8 -8 --------- Run | Jun Mat Min Mat Min Exi Min Mat Distress Signals 6 | . . . 1 . . . 5 Communications Jammed . | . . . . . . . . Distress Signals . | . . . . . . . . Times Spotted 101 | . 21 6 23 2 . 4 45 Peak Tracking Total 8 | . 4 2 8 1 . 3 7 Tactical Retreats 2 | . . . . . . . 2 Traps | -11 -10 -10 -9 -9 -9 -8 -8 ------- Run | Jun Mat Min Mat Min Exi Min Mat Traps Triggered 3 | . 2 . . . . . 1 Indirectly . | . . . . . . . . Trap Hack Attempts . | . . . . . . . . Triggered . | . . . . . . . . Disarmed . | . . . . . . . . Reprogrammed . | . . . . . . . . Reused . | . . . . . . . . Traps Extracted . | . . . . . . . . Installed . | . . . . . . . . Triggered . | . . . . . . . . Machines | -11 -10 -10 -9 -9 -9 -8 -8 ---------- Run | Jun Mat Min Mat Min Exi Min Mat Machines Disabled 1 | . 1 . . . . . . Max in Single Turn 1 | . 1 . . . . . . Machines Repaired . | . . . . . . . . Machines Sabotaged . | . . . . . . . . Overloaded Fab Kills . | . . . . . . . . Hacking | -11 -10 -10 -9 -9 -9 -8 -8 --------- Run | Jun Mat Min Mat Min Exi Min Mat Machines Accessed 5 | . 1 1 . 1 1 . 1 Terminals 2 | . . . . 1 . . 1 Fabricators . | . . . . . . . . Repair Stations 1 | . 1 . . . . . . Recycling Units . | . . . . . . . . Scanalyzers . | . . . . . . . . Garrison Access . | . . . . . . . . Total Hacks 11 | . 3 1 . 3 1 . 3 Successful 10 | . 2 1 . 3 1 . 3 Failed 1 | . 1 . . . . . . Catastrophic 1 | . 1 . . . . . . Database Lockouts . | . . . . . . . . Manual 2 | . . . . 1 1 . . Terminals 6 | . . . . 3 . . 3 Fabricators . | . . . . . . . . Repair Stations 3 | . 3 . . . . . . Recycling Units . | . . . . . . . . Scanalyzers . | . . . . . . . . Garrison Access . | . . . . . . . . Terminal Hacks 8 | . . 1 . 3 1 . 3 Record 1 | . . . . 1 . . . Robot Analysis 1 | . . . . 1 . . . Open Door 1 | . . 1 . . . . . Dispatch Records 1 | . . . . . . . 1 Investigation Status 1 | . . . . . . . 1 Zone Layout 2 | . . . . 1 . . 1 EX-Prototype ID Bank 1 | . . . . . 1 . . Fabricator Hacks . | . . . . . . . . Repair Station Hacks 2 | . 2 . . . . . . Scan Component 1 | . 1 . . . . . . Repair 1 | . 1 . . . . . . Recycling Unit Hacks . | . . . . . . . . Scanalyzer . | . . . . . . . . Garrison Access Hacks . | . . . . . . . . Unauthorized Hacks . | . . . . . . . . Terminals . | . . . . . . . . Fabricators . | . . . . . . . . Repair Stations . | . . . . . . . . Recycling Units . | . . . . . . . . Scanalyzers . | . . . . . . . . Garrison Access . | . . . . . . . . Data Cores Recovered . | . . . . . . . . Used . | . . . . . . . . Hacking Detections 1 | . 1 . . . . . . Full Trace Events . | . . . . . . . . Feedback Events . | . . . . . . . . Feedback Blocked . | . . . . . . . . Robot Schematics Acquired . | . . . . . . . . Robots Built . | . . . . . . . . Authchips . | . . . . . . . . Time . | . . . . . . . . Total Robot Build Rating . | . . . . . . . . Part Schematics Acquired . | . . . . . . . . Parts Built . | . . . . . . . . Authchips . | . . . . . . . . Time . | . . . . . . . . Total Part Build Rating . | . . . . . . . . Parts Repaired 1 | . 1 . . . . . . Time 32 | . 32 . . . . . . Parts Recycled . | . . . . . . . . Recycled Matter . | . . . . . . . . Retrieved Matter . | . . . . . . . . Retrieved Components . | . . . . . . . . Parts Scanalyzed . | . . . . . . . . Part Schematics Acquired . | . . . . . . . . Parts Damaged . | . . . . . . . . Bothacking | -11 -10 -10 -9 -9 -9 -8 -8 ------------ Run | Jun Mat Min Mat Min Exi Min Mat Used RIF Installer . | . . . . . . . . Robots Hacked . | . . . . . . . . Non-combat . | . . . . . . . . Combat . | . . . . . . . . Robot Hacks Applied . | . . . . . . . . Relay Couplers Released . | . . . . . . . . Fabnet Peak Effective % . | . . . . . . . . Robots Rewired . | . . . . . . . . Allies Hacked . | . . . . . . . . Hacks Repelled . | . . . . . . . . Allies | -11 -10 -10 -9 -9 -9 -8 -8 -------- Run | Jun Mat Min Mat Min Exi Min Mat Total Allies . | . . . . . . . . Largest Group . | . . . . . . . . Highest-Rated Group . | . . . . . . . . Highest-Rated Ally . | . . . . . . . . Total Orders . | . . . . . . . . Ally Attacks . | . . . . . . . . Total Damage . | . . . . . . . . Kills . | . . . . . . . . Allies Corrupted . | . . . . . . . . Allies Melted . | . . . . . . . . Intel | -11 -10 -10 -9 -9 -9 -8 -8 ------- Run | Jun Mat Min Mat Min Exi Min Mat Robot Analysis Total 1 | . . . . 1 . . . Derelict Logs Recovered . | . . . . . . . . Drone Launches . | . . . . . . . . Drone Recoveries . | . . . . . . . . Exploration | -11 -10 -10 -9 -9 -9 -8 -8 ------------- Run | Jun Mat Min Mat Min Exi Min Mat Turns Passed 4549 | 42 1033 146 703 233 288 528 1576 Spaces Moved 2297 | 40 492 74 333 170 211 367 610 Core 19 | 12 . . . . . . 7 Treads 87 | . . . . . . . 87 Legs . | . . . . . . . . Wheels 2191 | 28 492 74 333 170 211 367 516 Hover . | . . . . . . . . Flight . | . . . . . . . . Fastest Speed 50 | 50 80 135 135 135 135 120 120 Average Speed 156 | 78 167 135 144 135 135 129 191 Slowest Speed 1600 | 150 215 135 190 135 135 135 1600 Overloaded Moves . | . . . . . . . . Propulsion Burnouts . | . . . . . . . . Robots Hopped . | . . . . . . . . Cave-ins Triggered . | . . . . . . . . Exploration Rate (%) 40 | 4 66 12 32 50 60 63 37 Regions Visited 7 Branch Regions 4 Pre-discovered Areas . | . . . . . . . . Known Exits Taken . | . . . . . . . . Unknown Exits Taken 7 | 1 1 1 1 1 1 1 . Scrap Searched 3 | . . . . 1 . 2 . Spaces Dug . | . . . . . . . . Terrain Destroyed 1 | . . . . . . . 1 Melee . | . . . . . . . . Projectile . | . . . . . . . . AOE . | . . . . . . . . Terrain Rammed . | . . . . . . . . Walls Destroyed . | . . . . . . . . Machines Disabled . | . . . . . . . . Actions | -11 -10 -10 -9 -9 -9 -8 -8 --------- Run | Jun Mat Min Mat Min Exi Min Mat Total 2831 | 47 617 101 458 172 215 389 832 Wait 101 | . 39 2 19 . . . 41 Move 2290 | 39 491 73 332 169 210 366 610 Hop . | . . . . . . . . Pick Up 57 | 2 23 4 17 . 3 . 8 Fast Attach 35 | 6 4 1 2 . . 2 20 Attach 12 | . . 1 5 1 . 2 3 Detach . | . . . . . . . . Swap 12 | . 3 1 4 . . . 4 Drop 44 | . 4 6 14 . 2 1 17 Fire 278 | . 53 13 64 2 . 18 128 Melee . | . . . . . . . . Ram 2 | . . . 1 . . . 1 Kick . | . . . . . . . . Crush . | . . . . . . . . Escape Stasis . | . . . . . . . . Rewire . | . . . . . . . . Trap . | . . . . . . . . Miscellaneous . | . . . . . . . . Route ------- -11/Junkyard -10/Materials (discovered 3 exits: *Mat / *Min x2) -10/Mines -9/Materials -9/Mines (discovered 2 exits: *Mat / *Exi) -9/Exiles -8/Mines -8/Materials (discovered 1 exit: [*Fac]) History --------- Turn | Location | Event 26 | -11/Junkyard | Discovered new exit (range 16) 43 | -11/Junkyard | Entered Materials 296 | -10/Materials | Discovered new exit (range 16) 315 | -10/Materials | Build established: Mutant 482 | -10/Materials | Repaired Autogun 678 | -10/Materials | Discovered new exit (range 4) 1048 | -10/Materials | Discovered new exit (range 13) 1076 | -10/Materials | Entered Mines 1083 | -10/Mines | Core integrity fell below 50% 1127 | -10/Mines | Discovered new exit (range 13) 1144 | -10/Mines | Met a Derelict shopkeep closing up shop 1222 | -10/Mines | Entered Materials 1222 | -9/Materials | Evolved 2 slots: Utility x2 1516 | -9/Materials | Discovered new exit (range 14) 1925 | -9/Materials | Entered Mines 1926 | -9/Mines | Assembled infested the area 1931 | -9/Mines | Assisted by a Guerilla fighting off Assembled 1950 | -9/Mines | Met a Derelict bent on vengeance 1991 | -9/Mines | Discovered new exit (range 13) 2153 | -9/Mines | Deemed a non-threat by the Exiles lab entrance 2153 | -9/Mines | Discovered new exit (range 5) 2158 | -9/Mines | Entered Exiles 2191 | -9/Exiles | Met 8R-AWN 2215 | -9/Exiles | Met EX-HEX 2253 | -9/Exiles | Met EX-BIN 2268 | -9/Exiles | Aligned with FarCom system 2269 | -9/Exiles | Given EX-Vault access code 2300 | -9/Exiles | Opened EX-Vault 2311 | -9/Exiles | Found Deploy-a-Sentry 2314 | -9/Exiles | Found Deploy-a-Sentry 2317 | -9/Exiles | Found Deploy-a-Sentry 2346 | -9/Exiles | Warned to stay clear of 0b10 Research branches 2387 | -9/Exiles | Met EX-DEC 2435 | -9/Exiles | Discovered new exit (range 10) 2446 | -9/Exiles | Left Exiles lab with Deploy-a-Sentry 2446 | -9/Exiles | Entered Mines 2480 | -8/Mines | Discovered new exit (range 7) 2487 | -8/Mines | Lost 4 parts (2n2u) 2746 | -8/Mines | Core integrity fell below 50% 2974 | -8/Mines | Entered Materials 2974 | -8/Materials | Evolved 2 slots: Utility x2 3629 | -8/Materials | Garrison activated, responded to threat 3845 | -8/Materials | Garrison activated, responded to threat 4002 | -8/Materials | Lost 3 parts (1p1u1w) 4382 | -8/Materials | Build established: Scavenger-Mutant 4438 | -8/Materials | Garrison activated, responded to threat 4468 | -8/Materials | Discovered new exit (range 16) 4524 | -8/Materials | Core integrity fell below 50% 4542 | -8/Materials | Core integrity fell below 20% 4550 | -8/Materials | Destroyed by Y-45 Defender with Heavy Assault Rifle Last Messages --------------- 04410_ Destroyed Imp. Datajack. 04432_ G-47 Trooper suffers critical hit (Burn). 04438_ G-47 Trooper calls for garrison reinforcements. 04438_ ALERT: Activating Garrison Access M001. 04441_ Lgt. Treads destroyed. 04441_ Critical hit (Burn: +37). 04446_ G-47 Trooper destroyed. 04450_ System corrupted: Component data lost. 04457_ K-01 Serf collects debris. 04468_ EXIT=FOUND 04473_ Critical hit (Burn: +37). 04488_ R-06 Scavenger collects Imp. Heat Sink. 04491_ Adv. Heat Sink destroyed. 04494_ Hrd. Light Armor Plating destroyed. 04500_ Lgt. Treads destroyed. 04508_ Critical hit (Burn: +37). 04511_ Hvy. Particle Gun destroyed. 04514_ Beam Rifle destroyed. 04534_ Targeting Computer destroyed. 04543_ Critical hit (Burn: +37). Map ----- +----------------------------------------------------+ | ????????????????????????????????????? | | ????????????????????????????????????? | | ????????????????????????????????????? | | ????????????????????????????????????? | | ????????????????????????????????????? | | ???????????????????????????????? ???? | | ???????????????????????????????? #??? | | ???????????????????????????????? #??? | | ??????????????????????????????? ##?? | | ??????????????????????????????? ??? | | ??????????????????????????????? ??? | | ??????????????????????????????? ??? | | ??????????????????????????????? ???? | | ??????????????????????????????? ???? | | ???????????????????????########+##### | | ??????????????????????## | | ??????????????????????# !** | | ???????????????????????# """% !* "" | | ???????????????????????# """ ** T" | | ???????????????????????# """ "" | | ???????????????????????# % | | ???????????????????????#######+###### | | ??????###########+########## % #??? | | ??????# a #### | | ??????# < Y T | | ??????# @ Y %## # | | ??????# #######+########## !##%# | | ???????????????? ????????########%# | | ????????????????"""?????###########=# | | ??????????????? "R ????# #%# | | ??????????????? """ ????# = % +* | | ??????????????# ???# | = # | | ??????????????#! ???# ! =%# | | ??????????????#### ###??###########= | | ??????????????????##?????????????# | | ??????????????????????????????# + | | ??????????????????????????????# # | | ??????????????????????????????####### | | ????????????????????????????????????? | | ????????????##########????????????### | | ????????????# #????????????# ! | | ????????????# #????????????# | | ????????????# #????????????# | | ????????????# #????????????# | | ????????????# #??######????### | | ????????????# #?##!!!!##?????? | | ????????????# #?#! !??????? | | ???########## #?# ??????? | | ???# # #??# #??????? | | ???# """ #####+####### #??? #?? | +----------------------------------------------------+ Best States ------------- Heat Dissipation 50 Energy Generation 14 Energy Capacity 250 Matter Stores 300 Matter Capacity 300 Sight Range 16 Terrain Scan Density 10 Additional Mass Support 9 Armor Coverage 600 Evasion (%) 50 Targeting Accuracy 5 Recoil Reduction 2 Item Schematics ----------------- None Robot Schematics ------------------ None Fabricated ------------ Nothing Alien Tech Used ----------------- None Achievements -------------- None Challenges ------------ None Game ------ Seed FrostModifiedSlayer Manual? 0 Play Time 00:33:32 Cumulative 29.2 hours Start 2023.04.08 @ 22:33:30 End 2023.04.08 @ 23:06:37 Sessions 1 Manual Loads 0 Difficulty Rogue Special Mode None Game No. 25 Rogue 25 Adventurer 0 Explorer 0 Win Type - Total 0 Types 0/0/0/0/0/0/0/0/0 Lore% 18 Gallery% 36 Achievement% 32 Wizard Run 0 Options --------- ASCII 0 Keyboard 0 Movement Mouse Keybinds 0 Fullscreen 1 Font 18/SmallcapsGlow Map View 76x50 Tactical HUD 1 Map Filters NONE Filters NONE Steam 1 RUN: 6979359d-11dc-4a96-b1df-2ddd49692792